[Event "Titled Tuesday Blitz April 26 Early 2022"]
[White "Martin Carmona, Gaston Manuel"]
[Black "Sarana, Alexey"]
[WhiteFideId "22284567"]
[BlackFideId "24133795"]
[WhiteElo "2146"]
[BlackElo "2666"]
[Result "0-1"]
[Round "01"]
[TimeControl "180+1"]
[Date "2022.04.26"]
[WhiteClock "0:00:04"]
[BlackClock "0:00:42"]

1. d4 {[%clk 0:02:59]}  Nf6 {[%clk 0:02:59]} 2. Nf3 {[%clk 0:02:58]}  e6 {[%clk 0:03:00]} 3. c4 {[%clk 0:02:58]}  d5 {[%clk 0:03:00]} 4. g3 {[%clk 0:02:58]}  Bb4+ {[%clk 0:03:00]} 5. Bd2 {[%clk 0:02:57]}  Be7 {[%clk 0:03:01]} 6. Bg2 {[%clk 0:02:34]}  c6 {[%clk 0:03:01]} 7. O-O {[%clk 0:02:34]}  Nbd7 {[%clk 0:03:02]} 8. Qc2 {[%clk 0:02:31]}  b6 {[%clk 0:03:02]} 9. Bf4 {[%clk 0:02:29]}  Ba6 {[%clk 0:03:00]} 10. Ne5 {[%clk 0:02:14]}  Rc8 {[%clk 0:02:29]} 11. Rd1 {[%clk 0:02:11]}  Nxe5 {[%clk 0:02:25]} 12. dxe5 {[%clk 0:02:05]}  Nd7 {[%clk 0:02:25]} 13. cxd5 {[%clk 0:01:54]}  cxd5 {[%clk 0:02:25]} 14. Qa4 {[%clk 0:01:54]}  Bxe2 {[%clk 0:02:23]} 15. Re1 {[%clk 0:01:54]}  Bc4 {[%clk 0:02:12]} 16. Nd2 {[%clk 0:01:41]}  a5 {[%clk 0:01:56]} 17. Nxc4 {[%clk 0:01:22]}  Rxc4 {[%clk 0:01:56]} 18. Qb3 {[%clk 0:01:22]}  O-O {[%clk 0:01:54]} 19. Rac1 {[%clk 0:01:21]}  Rb4 {[%clk 0:01:53]} 20. Qc2 {[%clk 0:01:18]}  Bc5 {[%clk 0:01:51]} 21. a3 {[%clk 0:01:15]}  Rc4 {[%clk 0:01:50]} 22. Qb3 {[%clk 0:01:14]}  Rxc1 {[%clk 0:01:47]} 23. Rxc1 {[%clk 0:01:15]}  g5 {[%clk 0:01:46]} 24. Be3 {[%clk 0:01:10]}  d4 {[%clk 0:01:42]} 25. Bd2 {[%clk 0:01:02]}  Nxe5 {[%clk 0:01:42]} 26. Bxa5 {[%clk 0:01:02]}  Qd6 {[%clk 0:01:17]} 27. Bd2 {[%clk 0:01:01]}  d3 {[%clk 0:01:16]} 28. Qa4 {[%clk 0:00:51]}  h6 {[%clk 0:01:12]} 29. h4 {[%clk 0:00:44]}  Nf3+ {[%clk 0:00:56]} 30. Bxf3 {[%clk 0:00:18]}  Qxg3+ {[%clk 0:00:55]} 31. Bg2 {[%clk 0:00:15]}  Qxf2+ {[%clk 0:00:51]} 32. Kh2 {[%clk 0:00:15]}  Qxd2 {[%clk 0:00:50]} 33. Rd1 {[%clk 0:00:13]}  Qe3 {[%clk 0:00:46]} 34. Qc4 {[%clk 0:00:11]}  Bd6+ {[%clk 0:00:45]} 35. Kh1 {[%clk 0:00:10]}  Qg3 {[%clk 0:00:45]} 36. Kg1 {[%clk 0:00:11]}  Rd8 {[%clk 0:00:44]} 37. b4 {[%clk 0:00:08]}  Bf4 {[%clk 0:00:43]} 38. hxg5 {[%clk 0:00:05]}  hxg5 {[%clk 0:00:43]} 39. Rf1 {[%clk 0:00:04]}  d2 {[%clk 0:00:42]} 40. Qe2 {[%clk 0:00:04]}  Be3+ {[%clk 0:00:41]} 41. Kh1 {[%clk 0:00:04]}  Qh4+ {[%clk 0:00:42]} 0-1


[Site "https://www.chess.com"]

[Event "Titled Tuesday Blitz April 26 Early 2022"]
[White "Matamoros Franco, Carlos S."]
[Black "Mangialardo, Tiago Carvalho"]
[WhiteFideId "3600017"]
[BlackFideId "2130718"]
[WhiteElo "2554"]
[BlackElo "2052"]
[Result "1-0"]
[Round "01"]
[TimeControl "180+1"]
[Date "2022.04.26"]
[WhiteClock "0:00:18"]
[BlackClock "0:00:01"]

1. Nf3 {[%clk 0:03:00]}  Nf6 {[%clk 0:02:48]} 2. c4 {[%clk 0:02:59]}  g6 {[%clk 0:02:45]} 3. g3 {[%clk 0:02:54]}  Bg7 {[%clk 0:02:46]} 4. Bg2 {[%clk 0:02:54]}  O-O {[%clk 0:02:47]} 5. O-O {[%clk 0:02:55]}  c5 {[%clk 0:02:47]} 6. Nc3 {[%clk 0:02:52]}  Nc6 {[%clk 0:02:47]} 7. d4 {[%clk 0:02:52]}  d6 {[%clk 0:02:35]} 8. dxc5 {[%clk 0:02:43]}  dxc5 {[%clk 0:02:35]} 9. Be3 {[%clk 0:02:38]}  Qa5 {[%clk 0:02:18]} 10. Qb3 {[%clk 0:02:29]}  Ng4 {[%clk 0:01:41]} 11. Bf4 {[%clk 0:02:03]}  Nd4 {[%clk 0:00:34]} 12. Nxd4 {[%clk 0:02:01]}  cxd4 {[%clk 0:00:35]} 13. Nd5 {[%clk 0:01:40]}  Qc5 {[%clk 0:00:23]} 14. Qb5 {[%clk 0:01:13]}  Qxb5 {[%clk 0:00:11]} 15. Nxe7+ {[%clk 0:01:12]}  Kh8 {[%clk 0:00:11]} 16. cxb5 {[%clk 0:01:13]}  Bd7 {[%clk 0:00:04]} 17. Bxb7 {[%clk 0:00:59]}  Rae8 {[%clk 0:00:04]} 18. Bd6 {[%clk 0:00:51]}  Be5 {[%clk 0:00:04]} 19. Bxe5+ {[%clk 0:00:50]}  Nxe5 {[%clk 0:00:05]} 20. Nc6 {[%clk 0:00:45]}  Nc4 {[%clk 0:00:04]} 21. Nxd4 {[%clk 0:00:42]}  Nxb2 {[%clk 0:00:02]} 22. a4 {[%clk 0:00:35]}  Nc4 {[%clk 0:00:02]} 23. Rfc1 {[%clk 0:00:29]}  Nd6 {[%clk 0:00:01]} 24. Bc6 {[%clk 0:00:22]}  Rd8 {[%clk 0:00:02]} 25. Bxd7 {[%clk 0:00:20]}  Rxd7 {[%clk 0:00:03]} 26. e3 {[%clk 0:00:21]}  Ne4 {[%clk 0:00:03]} 27. Rc6 {[%clk 0:00:20]}  Nd2 {[%clk 0:00:03]} 28. Rac1 {[%clk 0:00:19]}  Ne4 {[%clk 0:00:04]} 29. Rc8 {[%clk 0:00:18]}  Rfd8 {[%clk 0:00:05]} 30. Rxd8+ {[%clk 0:00:17]}  Rxd8 {[%clk 0:00:05]} 31. Rc7 {[%clk 0:00:17]}  a5 {[%clk 0:00:04]} 32. Rxf7 {[%clk 0:00:17]}  Nc3 {[%clk 0:00:04]} 33. Ra7 {[%clk 0:00:16]}  Nxa4 {[%clk 0:00:04]} 34. Rxa5 {[%clk 0:00:16]}  Nb6 {[%clk 0:00:05]} 35. Ra6 {[%clk 0:00:16]}  Nd5 {[%clk 0:00:04]} 36. Rc6 {[%clk 0:00:15]}  Rb8 {[%clk 0:00:05]} 37. Rc5 {[%clk 0:00:16]}  Ne7 {[%clk 0:00:04]} 38. Nc6 {[%clk 0:00:16]}  Rc8 {[%clk 0:00:03]} 39. Re5 {[%clk 0:00:16]}  Nxc6 {[%clk 0:00:03]} 40. bxc6 {[%clk 0:00:17]}  Rxc6 {[%clk 0:00:04]} 41. g4 {[%clk 0:00:17]}  Kg7 {[%clk 0:00:05]} 42. h3 {[%clk 0:00:18]}  Kf6 {[%clk 0:00:04]} 43. Ra5 {[%clk 0:00:17]}  h6 {[%clk 0:00:04]} 44. Kg2 {[%clk 0:00:18]}  Rc2 {[%clk 0:00:03]} 45. h4 {[%clk 0:00:17]}  Rc4 {[%clk 0:00:03]} 46. Kf3 {[%clk 0:00:16]}  Rc3 {[%clk 0:00:02]} 47. g5+ {[%clk 0:00:16]}  hxg5 {[%clk 0:00:02]} 48. hxg5+ {[%clk 0:00:17]}  Ke6 {[%clk 0:00:02]} 49. Kg3 {[%clk 0:00:18]}  Rc4 {[%clk 0:00:01]} 50. f4 {[%clk 0:00:17]}  Rc3 {[%clk 0:00:02]} 51. Kf3 {[%clk 0:00:18]}  Kf7 {[%clk 0:00:01]} 52. Ra6 {[%clk 0:00:18]}  Kg7 {[%clk 0:00:02]} 53. Rd6 {[%clk 0:00:17]}  Kf7 {[%clk 0:00:02]} 54. Ke4 {[%clk 0:00:18]}  Rc4+ {[%clk 0:00:01]} 55. Rd4 {[%clk 0:00:18]}  Rc6 {[%clk 0:00:01]} 56. Rd7+ {[%clk 0:00:18]}  Ke6 {[%clk 0:00:01]} 57. Rg7 {[%clk 0:00:18]} 1-0


[Site "https://www.chess.com"]

[Event "Titled Tuesday Blitz April 26 Early 2022"]
[White "Matveeva, Olga"]
[Black "Urazayev, Arystanbek"]
[WhiteFideId "24107018"]
[BlackFideId "13709810"]
[WhiteElo "2083"]
[BlackElo "2422"]
[Result "0-1"]
[Round "01"]
[TimeControl "180+1"]
[Date "2022.04.26"]
[WhiteClock "0:00:31"]
[BlackClock "0:01:45"]

1. d4 {[%clk 0:02:59]}  Nf6 {[%clk 0:02:59]} 2. c4 {[%clk 0:02:52]}  g6 {[%clk 0:02:59]} 3. g3 {[%clk 0:02:50]}  Bg7 {[%clk 0:02:59]} 4. Bg2 {[%clk 0:02:50]}  O-O {[%clk 0:02:59]} 5. Nf3 {[%clk 0:02:50]}  d6 {[%clk 0:03:00]} 6. Nc3 {[%clk 0:02:51]}  c5 {[%clk 0:03:00]} 7. d5 {[%clk 0:02:50]}  a6 {[%clk 0:03:00]} 8. a4 {[%clk 0:02:49]}  e6 {[%clk 0:02:56]} 9. O-O {[%clk 0:02:48]}  exd5 {[%clk 0:02:56]} 10. cxd5 {[%clk 0:02:49]}  Re8 {[%clk 0:02:56]} 11. Nd2 {[%clk 0:02:47]}  Nbd7 {[%clk 0:02:51]} 12. h3 {[%clk 0:02:47]}  Rb8 {[%clk 0:02:43]} 13. Nc4 {[%clk 0:02:47]}  Nb6 {[%clk 0:02:42]} 14. Na3 {[%clk 0:02:31]}  Nfd7 {[%clk 0:02:23]} 15. a5 {[%clk 0:02:27]}  Na8 {[%clk 0:02:22]} 16. Nc4 {[%clk 0:02:27]}  Ne5 {[%clk 0:02:23]} 17. Nxe5 {[%clk 0:01:59]}  Bxe5 {[%clk 0:02:23]} 18. e4 {[%clk 0:01:52]}  Nc7 {[%clk 0:02:23]} 19. Kh2 {[%clk 0:01:50]}  Nb5 {[%clk 0:02:23]} 20. Nxb5 {[%clk 0:01:47]}  axb5 {[%clk 0:02:24]} 21. f4 {[%clk 0:01:46]}  Bd4 {[%clk 0:02:23]} 22. Ra3 {[%clk 0:01:37]}  Ra8 {[%clk 0:02:17]} 23. b4 {[%clk 0:01:33]}  b6 {[%clk 0:02:01]} 24. Rd3 {[%clk 0:01:20]}  Bg7 {[%clk 0:02:00]} 25. axb6 {[%clk 0:01:12]}  Qxb6 {[%clk 0:02:01]} 26. bxc5 {[%clk 0:01:11]}  Qxc5 {[%clk 0:02:01]} 27. Be3 {[%clk 0:01:09]}  Qc4 {[%clk 0:02:01]} 28. Bd4 {[%clk 0:01:07]}  Ra2 {[%clk 0:02:00]} 29. Bxg7 {[%clk 0:01:06]}  Kxg7 {[%clk 0:01:57]} 30. Qf3 {[%clk 0:01:05]}  Qxe4 {[%clk 0:01:52]} 31. Qxe4 {[%clk 0:00:41]}  Rxe4 {[%clk 0:01:53]} 32. Rb3 {[%clk 0:00:35]}  Ree2 {[%clk 0:01:51]} 33. Rg1 {[%clk 0:00:35]}  Bf5 {[%clk 0:01:46]} 34. g4 {[%clk 0:00:31]}  Be4 {[%clk 0:01:45]} 0-1


[Site "https://www.chess.com"]

[Event "Titled Tuesday Blitz April 26 Early 2022"]
[White "Meduri, Aakaash"]
[Black "Moiseenko, Alexander"]
[WhiteFideId "2032252"]
[BlackFideId "14102560"]
[WhiteElo "2096"]
[BlackElo "2577"]
[Result "0-1"]
[Round "01"]
[TimeControl "180+1"]
[Date "2022.04.26"]
[WhiteClock "0:00:03"]
[BlackClock "0:00:16"]

1. d4 {[%clk 0:02:59]}  Nf6 {[%clk 0:02:59]} 2. Nc3 {[%clk 0:02:56]}  d5 {[%clk 0:02:59]} 3. Bf4 {[%clk 0:02:55]}  c5 {[%clk 0:02:57]} 4. e3 {[%clk 0:02:55]}  a6 {[%clk 0:02:47]} 5. Nf3 {[%clk 0:02:46]}  e6 {[%clk 0:02:39]} 6. Ne5 {[%clk 0:02:46]}  cxd4 {[%clk 0:02:32]} 7. exd4 {[%clk 0:02:46]}  Nc6 {[%clk 0:02:26]} 8. a3 {[%clk 0:02:21]}  Be7 {[%clk 0:02:01]} 9. Be2 {[%clk 0:02:14]}  O-O {[%clk 0:01:59]} 10. O-O {[%clk 0:02:14]}  Nxe5 {[%clk 0:01:57]} 11. Bxe5 {[%clk 0:02:13]}  Bd7 {[%clk 0:01:52]} 12. Bd3 {[%clk 0:02:05]}  Bc6 {[%clk 0:01:46]} 13. f4 {[%clk 0:01:50]}  Ne4 {[%clk 0:01:45]} 14. f5 {[%clk 0:01:47]}  exf5 {[%clk 0:01:33]} 15. Rxf5 {[%clk 0:01:41]}  f6 {[%clk 0:01:31]} 16. Bxe4 {[%clk 0:01:30]}  dxe4 {[%clk 0:01:19]} 17. Bg3 {[%clk 0:01:26]}  Qd7 {[%clk 0:01:14]} 18. Rh5 {[%clk 0:01:18]}  Rad8 {[%clk 0:00:59]} 19. d5 {[%clk 0:01:07]}  g6 {[%clk 0:00:21]} 20. dxc6 {[%clk 0:00:55]}  Qxd1+ {[%clk 0:00:21]} 21. Rxd1 {[%clk 0:00:55]}  Rxd1+ {[%clk 0:00:21]} 22. Nxd1 {[%clk 0:00:56]}  gxh5 {[%clk 0:00:21]} 23. cxb7 {[%clk 0:00:56]}  Bc5+ {[%clk 0:00:21]} 24. Kf1 {[%clk 0:00:55]}  Ba7 {[%clk 0:00:21]} 25. Nc3 {[%clk 0:00:52]}  f5 {[%clk 0:00:20]} 26. Nd5 {[%clk 0:00:30]}  Kf7 {[%clk 0:00:14]} 27. Nb6 {[%clk 0:00:24]}  f4 {[%clk 0:00:05]} 28. Bxf4 {[%clk 0:00:18]}  Ke6 {[%clk 0:00:05]} 29. g3 {[%clk 0:00:17]}  Bxb6 {[%clk 0:00:05]} 30. b8=Q {[%clk 0:00:16]}  Rxb8 {[%clk 0:00:04]} 31. Bxb8 {[%clk 0:00:17]}  Be3 {[%clk 0:00:03]} 32. b3 {[%clk 0:00:14]}  Kd5 {[%clk 0:00:03]} 33. Ke2 {[%clk 0:00:14]}  Bd4 {[%clk 0:00:02]} 34. Bf4 {[%clk 0:00:11]}  Bc5 {[%clk 0:00:02]} 35. a4 {[%clk 0:00:11]}  Bd4 {[%clk 0:00:03]} 36. Be3 {[%clk 0:00:11]}  Be5 {[%clk 0:00:03]} 37. Bb6 {[%clk 0:00:10]}  Bc3 {[%clk 0:00:03]} 38. Ke3 {[%clk 0:00:10]}  Ke5 {[%clk 0:00:02]} 39. Bc7+ {[%clk 0:00:09]}  Kd5 {[%clk 0:00:02]} 40. Bb6 {[%clk 0:00:09]}  Ke5 {[%clk 0:00:02]} 41. h3 {[%clk 0:00:09]}  Kd5 {[%clk 0:00:02]} 42. g4 {[%clk 0:00:09]}  hxg4 {[%clk 0:00:03]} 43. hxg4 {[%clk 0:00:10]}  Ke5 {[%clk 0:00:04]} 44. Bc7+ {[%clk 0:00:10]}  Kd5 {[%clk 0:00:04]} 45. Bg3 {[%clk 0:00:10]}  Bb2 {[%clk 0:00:04]} 46. Ke2 {[%clk 0:00:10]}  Kd4 {[%clk 0:00:04]} 47. Bf2+ {[%clk 0:00:10]}  Kc3 {[%clk 0:00:04]} 48. Kd1 {[%clk 0:00:11]}  Ba3 {[%clk 0:00:03]} 49. Be3 {[%clk 0:00:11]}  Bd6 {[%clk 0:00:03]} 50. g5 {[%clk 0:00:10]}  Bc7 {[%clk 0:00:03]} 51. Bd2+ {[%clk 0:00:09]}  Kb2 {[%clk 0:00:03]} 52. Be3 {[%clk 0:00:08]}  Kc3 {[%clk 0:00:03]} 53. Bd2+ {[%clk 0:00:08]}  Kb2 {[%clk 0:00:03]} 54. Bb4 {[%clk 0:00:08]}  e3 {[%clk 0:00:03]} 55. Bc5 {[%clk 0:00:08]}  Bf4 {[%clk 0:00:03]} 56. b4 {[%clk 0:00:06]}  Bxg5 {[%clk 0:00:04]} 57. b5 {[%clk 0:00:06]}  axb5 {[%clk 0:00:04]} 58. axb5 {[%clk 0:00:07]}  Bf4 {[%clk 0:00:04]} 59. b6 {[%clk 0:00:06]}  h5 {[%clk 0:00:05]} 60. b7 {[%clk 0:00:05]}  h4 {[%clk 0:00:05]} 61. Bxe3 {[%clk 0:00:06]}  Bb8 {[%clk 0:00:04]} 62. c4 {[%clk 0:00:04]}  h3 {[%clk 0:00:04]} 63. Bg1 {[%clk 0:00:04]}  Kc3 {[%clk 0:00:04]} 64. c5 {[%clk 0:00:04]}  Kc4 {[%clk 0:00:05]} 65. c6 {[%clk 0:00:04]}  Kd5 {[%clk 0:00:05]} 66. Ba7 {[%clk 0:00:04]}  h2 {[%clk 0:00:04]} 67. Bxb8 {[%clk 0:00:01]}  h1=Q+ {[%clk 0:00:05]} 68. Kc2 {[%clk 0:00:02]}  Kxc6 {[%clk 0:00:06]} 69. Ba7 {[%clk 0:00:02]}  Kxb7 {[%clk 0:00:07]} 70. Bd4 {[%clk 0:00:02]}  Qg2+ {[%clk 0:00:08]} 71. Kb3 {[%clk 0:00:02]}  Qd5+ {[%clk 0:00:09]} 72. Kc3 {[%clk 0:00:03]}  Kc6 {[%clk 0:00:09]} 73. Kd3 {[%clk 0:00:03]}  Qb5+ {[%clk 0:00:10]} 74. Kc3 {[%clk 0:00:04]}  Qh5 {[%clk 0:00:10]} 75. Be3 {[%clk 0:00:05]}  Qg4 {[%clk 0:00:11]} 76. Kd3 {[%clk 0:00:05]}  Kd5 {[%clk 0:00:12]} 77. Bd2 {[%clk 0:00:03]}  Qe4+ {[%clk 0:00:13]} 78. Kc3 {[%clk 0:00:04]}  Qc4+ {[%clk 0:00:13]} 79. Kb2 {[%clk 0:00:04]}  Ke4 {[%clk 0:00:14]} 80. Ba5 {[%clk 0:00:03]}  Kd3 {[%clk 0:00:15]} 81. Be1 {[%clk 0:00:03]}  Qc2+ {[%clk 0:00:15]} 82. Ka3 {[%clk 0:00:03]}  Qb1 {[%clk 0:00:15]} 83. Ka4 {[%clk 0:00:03]}  Kc4 {[%clk 0:00:16]} 84. Ka5 {[%clk 0:00:03]}  Qb5# {[%clk 0:00:16]} 0-1


[Site "https://www.chess.com"]

[Event "Titled Tuesday Blitz April 26 Early 2022"]
[White "Melikhov, Evgeny V."]
[Black "Li, Ben"]
[WhiteFideId "4122046"]
[BlackFideId "2089980"]
[WhiteElo "1931"]
[BlackElo "2267"]
[Result "0-1"]
[Round "01"]
[TimeControl "180+1"]
[Date "2022.04.26"]
[WhiteClock "0:00:04"]
[BlackClock "0:00:23"]

1. d4 {[%clk 0:02:53]}  d5 {[%clk 0:02:56]} 2. c4 {[%clk 0:02:53]}  e6 {[%clk 0:02:51]} 3. Nc3 {[%clk 0:02:52]}  Bb4 {[%clk 0:02:49]} 4. cxd5 {[%clk 0:02:50]}  exd5 {[%clk 0:02:48]} 5. Nf3 {[%clk 0:02:44]}  Nf6 {[%clk 0:02:48]} 6. Bg5 {[%clk 0:02:42]}  Nbd7 {[%clk 0:02:47]} 7. e3 {[%clk 0:02:36]}  c5 {[%clk 0:02:47]} 8. dxc5 {[%clk 0:02:33]}  Qa5 {[%clk 0:02:46]} 9. Bxf6 {[%clk 0:02:26]}  Nxf6 {[%clk 0:02:47]} 10. Nd2 {[%clk 0:02:11]}  Bxc3 {[%clk 0:02:34]} 11. bxc3 {[%clk 0:02:10]}  Qxc5 {[%clk 0:02:35]} 12. Rc1 {[%clk 0:02:02]}  O-O {[%clk 0:02:32]} 13. Be2 {[%clk 0:02:02]}  Re8 {[%clk 0:02:27]} 14. O-O {[%clk 0:02:01]}  Be6 {[%clk 0:02:25]} 15. Nb3 {[%clk 0:02:00]}  Qb6 {[%clk 0:02:15]} 16. Nd4 {[%clk 0:01:59]}  Rac8 {[%clk 0:02:16]} 17. Qb3 {[%clk 0:01:57]}  Qc7 {[%clk 0:02:07]} 18. Bf3 {[%clk 0:01:52]}  Qd7 {[%clk 0:01:51]} 19. Qb5 {[%clk 0:01:40]}  Qe7 {[%clk 0:01:41]} 20. Rb1 {[%clk 0:01:27]}  Rc7 {[%clk 0:01:40]} 21. Rb3 {[%clk 0:01:09]}  Rec8 {[%clk 0:01:30]} 22. Qb4 {[%clk 0:01:03]}  Qd7 {[%clk 0:01:26]} 23. Ne2 {[%clk 0:00:59]}  Bg4 {[%clk 0:01:20]} 24. Bxg4 {[%clk 0:00:57]}  Nxg4 {[%clk 0:01:20]} 25. h3 {[%clk 0:00:54]}  Nf6 {[%clk 0:01:17]} 26. Rd1 {[%clk 0:00:52]}  b6 {[%clk 0:01:08]} 27. Qb5 {[%clk 0:00:49]}  Qe7 {[%clk 0:01:00]} 28. Qb4 {[%clk 0:00:43]}  Qe5 {[%clk 0:00:58]} 29. Qd4 {[%clk 0:00:38]}  Qf5 {[%clk 0:00:57]} 30. Qd3 {[%clk 0:00:32]}  Qe5 {[%clk 0:00:40]} 31. Qd4 {[%clk 0:00:32]}  Qe7 {[%clk 0:00:40]} 32. Nf4 {[%clk 0:00:28]}  Rc5 {[%clk 0:00:40]} 33. Ne2 {[%clk 0:00:24]}  Ne4 {[%clk 0:00:39]} 34. Qd3 {[%clk 0:00:11]}  h6 {[%clk 0:00:38]} 35. Qd4 {[%clk 0:00:11]}  Qg5 {[%clk 0:00:32]} 36. Ra3 {[%clk 0:00:05]}  R8c7 {[%clk 0:00:28]} 37. Rb3 {[%clk 0:00:04]}  Qf5 {[%clk 0:00:24]} 38. Ra3 {[%clk 0:00:04]}  Qxf2+ {[%clk 0:00:23]} 0-1


[Site "https://www.chess.com"]

[Event "Titled Tuesday Blitz April 26 Early 2022"]
[White "Mirzoev, Azer"]
[Black "Kuznetsov, Mikhail"]
[WhiteFideId "13400304"]
[BlackFideId "4117190"]
[WhiteElo "2525"]
[BlackElo "1981"]
[Result "1-0"]
[Round "01"]
[TimeControl "180+1"]
[Date "2022.04.26"]
[WhiteClock "0:00:36"]
[BlackClock "0:00:16"]

1. c4 {[%clk 0:03:00]}  Nf6 {[%clk 0:02:58]} 2. Nc3 {[%clk 0:02:59]}  d5 {[%clk 0:02:58]} 3. cxd5 {[%clk 0:02:59]}  Nxd5 {[%clk 0:02:58]} 4. g3 {[%clk 0:03:00]}  g6 {[%clk 0:02:56]} 5. Bg2 {[%clk 0:02:59]}  Nb6 {[%clk 0:02:51]} 6. h4 {[%clk 0:02:59]}  h5 {[%clk 0:02:51]} 7. Nf3 {[%clk 0:02:47]}  Bg7 {[%clk 0:02:47]} 8. d3 {[%clk 0:02:48]}  O-O {[%clk 0:02:46]} 9. O-O {[%clk 0:02:46]}  Nc6 {[%clk 0:02:43]} 10. Bg5 {[%clk 0:02:43]}  Nd4 {[%clk 0:02:26]} 11. Nxd4 {[%clk 0:02:40]}  Bxd4 {[%clk 0:02:26]} 12. Rc1 {[%clk 0:02:39]}  c6 {[%clk 0:02:25]} 13. Qd2 {[%clk 0:02:37]}  Be6 {[%clk 0:02:20]} 14. a3 {[%clk 0:02:34]}  Qd7 {[%clk 0:02:10]} 15. Ne4 {[%clk 0:02:23]}  Bd5 {[%clk 0:02:06]} 16. Nc5 {[%clk 0:02:20]}  Qc7 {[%clk 0:02:03]} 17. Bf4 {[%clk 0:02:14]}  e5 {[%clk 0:02:02]} 18. Bh6 {[%clk 0:02:10]}  Rfe8 {[%clk 0:01:45]} 19. Ne4 {[%clk 0:01:38]}  Bxe4 {[%clk 0:01:34]} 20. Bxe4 {[%clk 0:01:32]}  Nd7 {[%clk 0:01:13]} 21. b4 {[%clk 0:01:31]}  Nf6 {[%clk 0:01:10]} 22. Bf3 {[%clk 0:01:27]}  Rad8 {[%clk 0:00:58]} 23. e3 {[%clk 0:01:20]}  Bb6 {[%clk 0:00:55]} 24. Qe2 {[%clk 0:01:11]}  e4 {[%clk 0:00:43]} 25. dxe4 {[%clk 0:01:09]}  Nxe4 {[%clk 0:00:43]} 26. Bf4 {[%clk 0:01:06]}  Qc8 {[%clk 0:00:41]} 27. Rfd1 {[%clk 0:01:02]}  Rxd1+ {[%clk 0:00:41]} 28. Qxd1 {[%clk 0:01:01]}  Nf6 {[%clk 0:00:41]} 29. Kg2 {[%clk 0:00:58]}  Rd8 {[%clk 0:00:41]} 30. Qc2 {[%clk 0:00:54]}  Nd5 {[%clk 0:00:40]} 31. Bg5 {[%clk 0:00:52]}  Rd7 {[%clk 0:00:40]} 32. Rd1 {[%clk 0:00:51]}  Nc7 {[%clk 0:00:32]} 33. Bf6 {[%clk 0:00:45]}  Rxd1 {[%clk 0:00:31]} 34. Qxd1 {[%clk 0:00:45]}  Ne6 {[%clk 0:00:32]} 35. Ba1 {[%clk 0:00:43]}  Qd8 {[%clk 0:00:31]} 36. Qc2 {[%clk 0:00:42]}  Kf8 {[%clk 0:00:20]} 37. Qc3 {[%clk 0:00:41]}  Qe8 {[%clk 0:00:18]} 38. Qh8+ {[%clk 0:00:38]}  Ke7 {[%clk 0:00:19]} 39. Qf6+ {[%clk 0:00:38]}  Kf8 {[%clk 0:00:19]} 40. Be4 {[%clk 0:00:37]}  Bd8 {[%clk 0:00:16]} 41. Qe5 {[%clk 0:00:35]}  Bc7 {[%clk 0:00:15]} 42. Qh8+ {[%clk 0:00:34]}  Ke7 {[%clk 0:00:15]} 43. Qf6+ {[%clk 0:00:35]}  Kf8 {[%clk 0:00:16]} 44. Bxg6 {[%clk 0:00:35]}  Bd8 {[%clk 0:00:16]} 45. Qh8+ {[%clk 0:00:35]}  Ke7 {[%clk 0:00:16]} 46. Qxe8+ {[%clk 0:00:35]}  Kxe8 {[%clk 0:00:16]} 47. Bxh5 {[%clk 0:00:36]} 1-0


[Site "https://www.chess.com"]